bitfinex/quotes_ETHUSD_20220201
["timestamp","ask_amount","ask_price","bid_price","bid_amount"]
[1643735080622,0.25,2809.2,2808.4,5.08225192]
[1643735080925,0.25,2809.2,2808.4,3.1234965]
[1643735081323,0.25,2809.2,2808.4,5.0791736]
[1643735081724,0.3257908,2808.6,2808.4,3.1234965]
[1643735081925,1.21550491,2808.6,2808.4,3.1234965]
[1643735082326,1.21550491,2808.6,2808.5,1.0]
[1643735083126,1.21550491,2808.6,2808.4,3.1234965]
[1643735083329,1.21550491,2808.6,2807.9,2.6705935]
[1643735083330,6.7,2808.5,2807.9,2.6705935]
[1643735083532,6.7,2808.5,2807.7,0.03914504]
[1643735083533,8.7120036,2808.5,2807.7,0.03914504]
[1643735083728,1.67900336,2808.4,2807.0,0.178]
[1643735083928,1.67900336,2808.4,2806.9,1.68328]
[1643735083929,0.25,2808.0,2807.1,0.17795]
[1643735084209,0.25,2808.0,2806.4,0.87133569]
[1643735084210,1.01668776,2807.8,2806.7,0.17795]
[1643735084409,1.01668776,2807.8,2806.0,8.04607435]
[1643735084410,0.1781,2807.7,2806.2,0.87133569]
[1643735084609,0.1781,2807.7,2806.0,4.89333569]
[1643735084610,0.25,2807.4,2806.0,4.89333569]
[1643735084809,1.69447166,2807.3,2806.0,4.71523569]
[1643735085010,1.69447166,2807.3,2805.9,0.01289695]
[1643735085011,1.50170624,2807.2,2805.9,0.88423264]
[1643735085212,0.87498571,2806.1,2805.9,0.88423264]
[1643735085413,0.87498571,2806.1,2805.9,0.87133569]
[1643735085611,0.87498571,2806.1,2805.6,0.87133569]
[1643735085810,0.25,2806.3,2805.7,0.87133569]
[1643735086013,0.25,2806.3,2805.9,0.87133569]
[1643735086315,0.25,2806.3,2806.0,1.06194864]
[1643735086513,0.1781,2807.5,2806.0,0.19046295]
[1643735086718,0.25,2807.1,2806.1,0.1781]
[1643735086918,0.25,2807.1,2806.4,20.9]
[1643735087118,0.17794,2808.5,2806.4,20.9]
[1643735087119,0.1781,2808.4,2806.9,0.01241286]
[1643735087317,5.66253028,2808.9,2807.0,0.35585]
[1643735087318,0.1779,2808.8,2807.0,0.35585]
[1643735087519,0.1779,2808.8,2807.1,0.428]
[1643735087520,1.50117843,2808.7,2807.1,0.428]
[1643735087718,1.35584,2808.6,2807.2,0.1779]
[1643735087944,0.01271791,2808.0,2806.8,3.1779]
[1643735088131,1.67927843,2807.9,2806.8,2.0]
[1643735088329,0.4781,2807.9,2806.9,1.0]
[1643735088529,0.4781,2807.9,2806.6,3.1779]
[1643735088731,0.94014678,2807.5,2806.6,4.06848]
[1643735088936,0.94014678,2807.5,2806.6,4.36848]
[1643735089131,0.94014678,2807.5,2806.6,2.06848]
[1643735089430,1.19014678,2807.5,2806.6,0.1779]
[1643735089929,0.94014678,2807.5,2806.6,0.1779]
[1643735090131,0.94014678,2807.5,2806.4,2.14045338]
[1643735090332,0.94014678,2807.5,2806.4,2.11699519]
[1643735090530,0.94014678,2807.5,2806.4,0.1781]
[1643735090731,0.1781,2807.9,2806.4,2.14706035]
[1643735090932,0.1781,2807.9,2806.7,0.89056]
[1643735091131,0.1781,2808.2,2806.6,0.1781]
[1643735091336,1.5014952,2808.1,2806.6,0.1781]
[1643735091534,1.5014952,2808.1,2806.2,0.1781]
[1643735091535,0.1781,2808.0,2806.2,0.1781]
[1643735091777,1.5014952,2807.9,2806.2,0.1781]
[1643735091981,0.1781,2807.8,2806.2,0.1781]
[1643735092180,1.67955153,2807.7,2806.2,0.1781]
[1643735092480,0.69111731,2806.7,2806.1,0.1781]
[1643735092678,1.69994877,2807.6,2805.6,2.1781]
[1643735092679,0.25,2807.3,2805.6,2.1781]
[1643735092882,0.17794,2807.2,2805.6,2.1781]
[1643735093079,0.1781,2807.1,2805.6,2.1781]
[1643735093280,0.17794,2807.0,2805.6,2.1781]
[1643735093478,0.36588896,2806.6,2805.6,2.1781]
[1643735094280,1.25319865,2806.3,2805.6,2.1781]
[1643735094479,1.25319865,2806.3,2805.6,0.1781]
[1643735095822,0.3,2806.3,2805.6,0.1781]
[1643735096221,0.1781,2806.9,2805.6,0.1781]
[1643735096222,0.37369031,2806.1,2805.6,0.1781]
[1643735096425,0.17794,2806.7,2805.2,0.1781]
[1643735096625,0.1781,2806.6,2805.2,0.1781]
[1643735096824,0.1781,2806.6,2805.1,2.0]
[1643735097025,0.17794,2806.5,2805.1,2.0]
[1643735097225,0.1782,2806.4,2805.1,2.0]
[1643735097425,0.69025066,2807.2,2805.1,2.0]
[1643735097426,0.85021747,2805.8,2805.1,2.0]
[1643735097626,0.85021747,2805.8,2804.9,9.66933994]
[1643735097931,0.85021747,2805.8,2805.0,1.0]
[1643735098128,0.1782,2806.4,2805.0,3.0]
[1643735098328,0.1782,2806.4,2805.0,3.8910447]
[1643735099179,0.81900454,2805.7,2805.0,3.8910447]
[1643735099384,0.81900454,2805.7,2805.0,1.0]
[1643735099582,1.11900454,2805.7,2805.0,1.0]
[1643735099783,1.11900454,2805.7,2804.9,3.05840994]
[1643735099784,0.3,2805.7,2804.9,3.05840994]
[1643735100183,0.3,2805.9,2804.9,3.05840994]
[1643735100389,0.42951329,2806.0,2804.9,3.05840994]
[1643735100586,0.3,2805.9,2804.9,3.05840994]
[1643735100787,0.42951329,2806.0,2804.9,8.74639994]
[1643735100987,5.0,2805.0,2804.9,7.74639994]
[1643735101192,5.0,2805.0,2804.9,7.47]
[1643735101388,5.3,2805.0,2804.9,7.47]
[1643735101592,5.3,2805.0,2804.5,2.0]
[1643735101792,5.0,2805.0,2804.9,6.7]
[1643735102188,4.99872113,2805.0,2804.9,6.7]
[1643735102390,3.62756214,2805.0,2804.8,0.428]
[1643735102589,3.62756214,2805.0,2804.8,0.6062]
[1643735103540,3.62756214,2805.0,2804.9,0.17795]
[1643735103737,0.25,2805.3,2805.0,0.04993786]
[1643735103940,2.0,2806.7,2805.0,0.04993786]
[1643735103941,0.78383806,2806.5,2805.3,0.89092]
[1643735104138,0.1782,2806.7,2805.4,2.428]
[1643735104139,0.25,2806.3,2805.4,2.428]
[1643735104342,0.25,2806.3,2805.4,0.428]
[1643735104538,0.25,2806.3,2805.3,1.0]
[1643735104737,0.1782,2806.2,2805.3,1.0]
[1643735105340,0.1782,2806.2,2805.0,0.1782]
[1643735105341,0.85305967,2805.5,2805.0,0.1782]
[1643735105546,0.85305967,2805.5,2804.4,0.1782]
[1643735105547,0.25,2805.3,2804.4,0.1782]
[1643735105739,0.25,2805.3,2804.3,0.18065202]
[1643735105938,0.25,2805.3,2804.3,0.00245202]
[1643735106139,0.25,2805.3,2804.4,0.17795]
[1643735106341,0.25,2805.3,2804.4,0.01205129]
[1643735106539,0.25,2805.3,2804.4,0.89129]
[1643735106779,0.25,2805.3,2804.1,4.82909648]
[1643735106780,0.31672419,2805.1,2804.1,4.82909648]
[1643735106984,0.31672419,2805.1,2804.1,4.12155]
[1643735107482,0.8138215,2804.6,2804.1,4.12155]
[1643735107681,1.0638215,2804.6,2803.9,2.23698374]
[1643735107884,0.25,2804.6,2803.9,2.05903374]
[1643735108383,0.25,2804.6,2803.9,0.27639994]
[1643735109787,0.25,2804.6,2804.0,2.36749248]
[1643735109988,0.25,2804.6,2804.1,0.428]
[1643735110186,0.25,2804.6,2804.3,1.78236]
[1643735110628,0.25,2804.6,2804.2,1.95834875]
[1643735110830,0.25,2804.6,2804.2,2.47069005]
[1643735111030,0.25,2804.6,2804.2,0.428]
[1643735111228,0.25,2804.6,2804.2,2.40509201]
[1643735111429,0.93222718,2805.3,2804.2,2.40509201]
[1643735111632,0.7967752,2805.3,2803.9,0.27639994]
[1643735111832,0.43151014,2804.7,2803.9,0.27639994]
[1643735112031,0.1782,2805.2,2803.9,0.27639994]
[1643735112236,2.93779595,2805.2,2803.9,0.27639994]
[1643735112635,0.76883983,2804.2,2803.9,0.27639994]
[1643735112832,0.3,2804.1,2803.9,0.13819997]
[1643735113034,0.44636965,2804.0,2803.9,0.13819997]
[1643735113233,0.44636965,2804.0,2803.5,1.1155874]
[1643735113832,0.44636965,2804.0,2802.4,4.73270352]
[1643735113833,0.89351001,2803.6,2802.4,4.73270352]
[1643735114033,0.1782,2803.9,2802.4,4.73270352]
[1643735114034,0.1782,2803.9,2802.6,1.78348]
[1643735114289,0.1782,2804.0,2802.6,1.78348]
[1643735114483,0.1782,2804.0,2802.8,7.47]
[1643735114786,2.4782,2804.2,2802.8,7.47]
[1643735114990,0.17794,2804.1,2802.8,7.47]
[1643735115191,0.19242903,2804.0,2802.8,7.47]
[1643735115586,0.62042903,2804.0,2802.8,7.47]
[1643735115788,0.17794,2803.9,2802.8,7.47]
[1643735115985,0.1782,2803.8,2802.8,7.47]
[1643735116186,0.1782,2803.8,2802.7,2.08255905]
[1643735116187,0.60594,2803.7,2802.7,2.08255905]
[1643735116488,0.60594,2803.7,2802.3,200.01207662]
[1643735116489,0.1782,2803.6,2802.6,7.47]
[1643735116986,0.34438709,2802.8,2802.6,7.47]
[1643735117391,0.34438709,2802.8,2802.6,8.47]
[1643735118439,0.34438709,2802.8,2802.6,7.47]
[1643735118842,0.52258709,2802.8,2802.6,7.47]
[1643735120446,0.52258709,2802.8,2802.3,200.0]
[1643735120447,0.17794,2802.7,2802.3,200.0]
[1643735120644,0.1784,2802.6,2802.3,200.0]
[1643735120945,6.87794,2802.4,2802.3,85.22920372]
[1643735121145,7.74612289,2802.4,2802.3,75.18880372]
[1643735121347,9.22452289,2802.4,2802.3,20.60487916]
[1643735121693,4.53109474,2802.3,2800.7,0.01251596]
[1643735121884,0.01289551,2801.6,2800.7,0.84363]
[1643735122082,0.03109474,2801.4,2800.7,0.84363]
[1643735122287,0.42958743,2800.9,2800.8,1.61827]
[1643735122486,0.60798743,2800.9,2800.8,1.61827]
[1643735122789,2.38012743,2800.9,2800.4,3.9686]
[1643735122984,2.38012743,2800.9,2800.2,1.1155874]
[1643735122985,0.19720773,2800.8,2800.2,1.1155874]
[1643735123185,0.17794,2800.7,2800.2,1.1155874]
[1643735123385,0.01209337,2800.3,2800.2,1.1155874]
[1643735123586,0.01209337,2800.3,2800.2,8.74e-05]
[1643735123784,0.02929901,2800.3,2798.5,3.46925983]
[1643735123988,0.02929901,2800.3,2798.5,0.00248584]
[1643735124187,0.02929901,2800.3,2798.6,2.0]
[1643735124188,0.01209337,2800.3,2798.6,2.0]
[1643735124390,0.01209337,2800.3,2798.6,2.01272924]
[1643735124587,0.01209337,2800.3,2799.1,0.44742395]
[1643735124785,0.1786,2800.2,2798.8,2.0]
[1643735124988,0.1786,2800.2,2798.6,0.01272924]
[1643735124989,0.36916397,2800.2,2798.6,0.01272924]
[1643735125188,0.65654,2800.2,2798.5,2.0]
[1643735125640,0.35654,2800.2,2798.5,2.0]
[1643735125840,0.65654,2800.2,2799.2,0.35512366]
[1643735126041,0.1784,2800.3,2799.3,7.3663]
[1643735126440,0.47794,2800.4,2799.3,5.3663]
[1643735126644,0.1784,2800.3,2799.3,7.42309307]
[1643735126841,0.25,2800.8,2800.4,0.41060871]
[1643735126842,0.1784,2800.6,2800.4,0.41060871]
[1643735127044,0.25,2800.8,2799.4,9.77806305]
[1643735127245,0.25,2800.8,2800.7,1.0]
[1643735127445,0.01207963,2801.4,2800.7,1.0]
[1643735127446,0.1784,2801.3,2800.7,1.0]
[1643735127645,1.02344,2801.3,2800.7,1.0]
[1643735127843,0.84504,2801.3,2800.7,1.0]
[1643735128051,0.84504,2801.3,2801.0,0.32068198]
[1643735128245,0.84504,2801.3,2800.7,1.0]
[1643735128445,0.1784,2801.2,2800.7,1.0]
[1643735128645,0.84504,2801.2,2800.7,1.0]
[1643735129283,0.21080262,2801.1,2800.9,0.9162335]
[1643735129487,0.84504,2801.2,2800.9,0.9162335]
[1643735130490,5.0,2801.9,2801.1,0.32989241]
[1643735130491,0.1784,2801.9,2801.1,0.32989241]
[1643735130701,0.1784,2802.2,2801.2,0.428]
[1643735130993,0.1784,2802.2,2801.2,0.378]
[1643735131489,0.50964317,2802.2,2801.6,0.92215745]
[1643735131689,0.80964317,2802.2,2801.6,0.92215745]
[1643735131889,0.80964317,2802.2,2801.2,0.378]
[1643735131890,0.1784,2802.2,2801.2,0.378]
[1643735132093,0.1784,2802.3,2801.3,2.18190986]
[1643735132292,0.1784,2802.9,2801.3,2.18190986]
[1643735132491,0.1784,2802.9,2801.5,0.00608856]
[1643735132792,0.1784,2802.9,2801.6,0.428]
[1643735133028,0.1784,2802.9,2802.5,1.27081404]
[1643735133230,0.1784,2802.9,2802.0,0.428]
[1643735133828,0.1784,2802.9,2801.3,1.6162]
[1643735134031,0.17794,2802.8,2801.3,1.6162]
[1643735134228,0.31589349,2801.8,2801.4,0.82152707]
[1643735134437,0.31589349,2801.8,2801.2,5.953]
[1643735134936,0.3298174,2801.8,2801.0,5.589]
[1643735135136,0.1784,2801.7,2801.0,5.589]
[1643735135335,0.31589349,2801.8,2801.4,0.67890947]
[1643735135540,0.1784,2802.1,2801.4,0.67890947]
[1643735135841,0.25,2802.6,2801.0,5.589]
[1643735135842,0.17794,2802.4,2801.0,5.589]
[1643735136037,0.1784,2802.3,2801.2,1.0]
[1643735136236,0.35634,2802.3,2801.2,1.0]
[1643735136674,0.65634,2802.3,2801.2,1.0]
[1643735136878,0.46151385,2802.2,2801.2,1.0]
[1643735137075,0.42239612,2801.3,2801.2,1.0]
[1643735137275,0.42239612,2801.3,2801.2,7.25]
[1643735137477,0.1784,2802.1,2801.2,7.25]
[1643735137775,0.17794,2802.1,2801.2,6.25]
[1643735137976,0.1784,2802.0,2801.2,6.25]
[1643735138677,0.17794,2801.9,2801.2,6.25]
[1643735138876,0.1784,2801.8,2801.2,6.25]
[1643735139680,0.3776392,2801.6,2801.2,6.25]
[1643735140279,0.3776392,2801.6,2801.0,6.589]
[1643735140544,0.39094181,2801.6,2801.0,6.589]
[1643735140744,0.39282398,2801.1,2801.0,6.589]
[1643735141247,0.17794,2801.9,2801.0,6.589]
[1643735141446,0.1784,2801.8,2801.0,6.589]
[1643735141644,0.17794,2801.7,2800.7,0.27639994]
[1643735141844,0.17794,2801.7,2800.5,7.23142809]
[1643735141845,0.1784,2801.6,2800.5,7.23142809]
[1643735142044,0.19655608,2801.6,2800.5,6.4604]
[1643735142444,0.1784,2801.6,2800.5,6.4604]
[1643735142845,0.36832178,2801.2,2800.5,6.4604]
[1643735143046,0.1784,2801.1,2800.5,6.4604]
[1643735143646,0.1784,2801.3,2800.5,6.4604]
[1643735144479,0.1784,2801.3,2800.7,0.41524034]
[1643735144679,0.4784,2801.3,2800.5,6.4604]
[1643735144881,0.1784,2801.3,2800.5,6.4604]
[1643735145083,0.25,2802.0,2800.6,2.54285476]
[1643735145381,0.25,2802.0,2800.8,0.01222902]
[1643735145582,0.25,2802.0,2800.9,0.41427755]
[1643735145781,0.1784,2802.5,2801.6,0.01264893]
[1643735145982,5.0,2802.6,2801.7,8.07455288]
[1643735145983,2.579454,2801.8,2801.7,8.07455288]
[1643735146287,5.0,2802.6,2801.8,1.3794]
[1643735146483,5.0,2802.6,2801.8,6.5942]
[1643735146679,0.1784,2803.2,2801.8,6.5942]
[1643735146880,0.33600644,2802.7,2802.3,0.68161489]
[1643735147281,0.1784,2803.2,2802.3,0.68161489]
[1643735147481,0.1784,2803.2,2801.9,1.0]
[1643735147482,0.17794,2803.1,2801.9,1.0]
[1643735147680,0.17794,2803.1,2801.9,0.95]
[1643735147681,0.1784,2803.0,2801.9,0.95]
[1643735147929,0.1784,2803.0,2802.0,2.13336449]
[1643735148131,0.17794,2802.9,2801.9,0.95]
[1643735148331,0.42447031,2802.2,2801.9,0.95]
[1643735148532,0.1784,2802.8,2802.0,0.69182268]
[1643735148533,0.17794,2802.6,2802.0,0.69182268]
[1643735148831,0.01218522,2803.0,2802.0,0.69182268]
[1643735148832,0.1784,2802.9,2802.1,2.07787511]
[1643735149034,0.17794,2802.9,2801.8,6.5942]
[1643735149233,0.1784,2802.8,2801.8,6.5942]
[1643735149435,0.17794,2802.7,2801.8,6.5942]
[1643735149635,0.1784,2802.6,2801.8,6.5942]
[1643735149835,0.1784,2802.6,2801.9,1.0]
[1643735150035,0.1784,2802.6,2802.0,0.76473185]
[1643735150235,0.1784,2802.6,2801.8,6.5942]
[1643735150640,0.31824283,2802.3,2801.9,1.0]
[1643735150835,0.31824283,2802.3,2801.8,6.5942]
[1643735151462,6.800954,2802.6,2802.1,0.742488]
[1643735151683,6.800954,2802.6,2802.3,0.89221]
[1643735151684,6.34066565,2802.6,2802.3,0.89221]
[1643735151885,6.322554,2802.6,2802.3,0.89221]
[1643735152282,6.500494,2802.6,2802.0,1.78435]
[1643735152483,0.44880973,2802.4,2802.0,1.78435]
[1643735152682,0.44880973,2802.4,2801.8,6.5942]
[1643735152683,0.62674973,2802.4,2801.8,6.5942]
[1643735152884,0.44880973,2802.4,2801.8,6.5942]
[1643735153091,0.44880973,2802.4,2801.1,3.53448145]
[1643735153092,1.0,2801.9,2801.1,3.53448145]
[1643735153388,1.0,2801.9,2800.6,5.3537367]
[1643735153389,1.0,2801.4,2800.5,0.00248409]
[1643735153585,0.25,2801.2,2800.5,0.00248409]
[1643735153789,21.68434,2801.1,2800.5,0.00248409]
[1643735153987,21.68434,2801.1,2800.8,0.4403003]
[1643735153988,0.78912839,2801.1,2800.8,0.4403003]
[1643735154191,0.35634,2801.1,2800.8,0.4403003]
[1643735154393,0.1784,2801.1,2800.8,0.4403003]
[1643735156257,0.1784,2801.1,2800.3,1.1784]
[1643735156457,0.1784,2801.1,2800.3,0.1784]
[1643735156659,0.35634,2801.1,2800.3,0.1784]
[1643735157358,0.35634,2801.1,2800.5,0.76497403]
[1643735157758,0.35634,2801.1,2800.0,3.26654471]
[1643735157961,0.35634,2801.1,2800.0,3.56654471]
[1643735158162,0.43718106,2801.0,2800.4,0.44119008]
[1643735158360,0.25,2801.2,2800.4,0.44119008]
[1643735158361,0.35634,2800.9,2800.4,0.44119008]
[1643735158566,0.1785,2801.1,2800.6,6.6]
[1643735158765,0.17848,2801.3,2801.0,4.23658567]
[1643735158962,0.17848,2801.3,2801.0,0.83658567]
[1643735159176,0.17848,2801.3,2800.4,1.44119008]
[1643735159378,0.39013445,2801.2,2800.4,1.44119008]
[1643735159576,0.39013445,2801.2,2800.4,1.74119008]
[1643735159774,0.39013445,2801.2,2800.4,0.74119008]
[1643735159974,0.17848,2801.3,2800.4,0.74119008]
[1643735160177,0.1784,2801.2,2800.4,0.44119008]
[1643735160377,0.1784,2801.2,2800.8,0.83134613]
[1643735160780,0.17848,2801.1,2800.4,0.44119008]
[1643735160980,0.17848,2801.1,2800.9,0.35227185]
[1643735160981,0.1784,2801.0,2800.9,0.35227185]
[1643735161181,0.47032364,2801.3,2800.5,0.89277]
[1643735161381,0.17848,2801.3,2800.5,0.89277]
[1643735161983,0.17848,2801.3,2800.3,8.47]
[1643735162279,0.17848,2801.3,2800.9,0.32869692]
[1643735162480,0.17848,2801.3,2800.9,0.90928865]
[1643735163541,0.17848,2801.3,2800.4,0.89279]
[1643735164143,0.17848,2801.3,2800.3,8.47]
[1643735164341,0.1784,2801.2,2800.4,2.1928]
[1643735164742,0.1784,2801.2,2800.3,7.77]
[1643735164743,0.17848,2801.1,2800.3,7.47]
[1643735164947,0.12848,2801.1,2799.9,1.96395]
[1643735165143,1.0,2800.9,2799.9,0.1784]
[1643735165344,2.23987972,2800.8,2799.9,0.1784]
[1643735165541,20.9,2800.7,2799.9,0.1784]
[1643735165741,0.36608871,2800.5,2799.9,0.1784]
[1643735165941,0.6064,2800.4,2799.9,0.1784]
[1643735166146,0.72918,2800.4,2799.9,0.1784]
[1643735166344,0.1727,2800.4,2799.9,0.1784]
[1643735166546,0.12848,2800.7,2799.9,0.1784]
[1643735167081,0.12848,2800.7,2800.1,0.32349595]
[1643735167082,0.37858604,2800.7,2800.1,0.32349595]
[1643735167280,0.37858604,2800.7,2800.4,0.87254877]
[1643735167479,0.37858604,2800.7,2799.5,0.01231727]
[1643735167887,0.37858604,2800.7,2799.3,3.27393]
[1643735167888,0.30688,2800.6,2799.3,1.96433]
[1643735168083,0.73488,2800.6,2799.3,1.78593]
[1643735168487,0.40801641,2800.0,2799.7,0.68403391]
[1643735168885,0.12848,2800.3,2799.7,0.68403391]
[1643735170083,0.38270829,2799.8,2799.4,1.0]
[1643735170284,0.12848,2800.3,2799.5,0.3]
[1643735170541,0.12848,2800.3,2799.3,2.08593]
[1643735170739,0.6064,2800.6,2799.4,0.3]
[1643735170940,0.1784,2800.6,2799.4,0.3]
[1643735171144,0.1784,2800.8,2800.5,0.85492834]
[1643735171342,0.56724073,2800.6,2799.6,0.01219727]
[1643735171641,0.56724073,2800.6,2799.3,3.08593]
[1643735171940,0.1784,2800.5,2799.3,3.08593]
[1643735172342,0.1784,2800.5,2799.7,0.37481338]
[1643735172541,0.1784,2800.5,2799.9,0.84312427]
[1643735172939,0.12848,2800.4,2799.9,0.84312427]
[1643735173140,0.1784,2800.3,2799.9,0.84312427]
[1643735174679,0.32147048,2800.1,2799.9,0.84312427]
[1643735174881,0.1784,2800.3,2799.9,0.84312427]
[1643735176280,0.45728933,2800.4,2799.9,0.84312427]
[1643735176480,0.12848,2800.4,2799.9,0.84312427]
[1643735177685,0.1784,2800.3,2799.9,0.84312427]
[1643735178532,0.12848,2800.4,2799.2,3.5902]
[1643735178733,0.12848,2800.4,2799.3,1.0]
[1643735178935,0.1784,2800.3,2799.4,2.14957506]
[1643735179235,0.1784,2800.3,2799.5,0.89311]
[1643735179435,0.12848,2800.2,2799.5,0.89311]
[1643735179635,0.12848,2800.2,2799.9,0.90825333]
[1643735179636,0.1784,2800.1,2799.9,0.90825333]
[1643735179833,0.12848,2800.0,2799.9,0.90825333]
[1643735180037,0.12848,2800.0,2799.2,3.44957506]
[1643735180334,0.12848,2800.0,2799.2,1.0]
[1643735180936,0.12848,2800.0,2799.3,2.08045303]
[1643735181136,0.25,2800.7,2799.5,1.78607]
[1643735181137,0.12848,2800.3,2799.5,1.78607]
[1643735181337,0.12848,2800.3,2799.5,2.08607]
[1643735181338,0.1784,2800.2,2799.5,2.08607]
[1643735181539,0.12848,2800.3,2799.5,4.16745612]
[1643735181791,0.12848,2800.6,2800.2,4.10463756]
[1643735182094,0.1784,2800.5,2800.2,4.10463756]
[1643735182691,0.1784,2800.5,2800.2,0.85463756]
[1643735182895,0.1784,2800.5,2799.8,1.0]
[1643735183091,0.1784,2800.5,2799.6,1.0]
[1643735183092,0.12848,2800.4,2799.6,1.0]
[1643735183292,0.1784,2800.3,2799.5,2.08607]
[1643735183494,0.1784,2800.3,2799.1,5.50456]
[1643735183495,0.12848,2800.2,2799.1,5.50456]
[1643735183692,0.17696118,2800.1,2799.1,5.50456]
[1643735183892,0.12848,2800.0,2799.6,0.83699096]
[1643735184091,0.1784,2799.9,2799.6,0.83699096]
[1643735184495,0.1784,2800.1,2799.6,2.90907044]
[1643735184692,0.1784,2800.5,2799.6,3.87968602]
[1643735184896,20.9,2801.3,2799.6,3.87968602]
[1643735184897,0.428,2801.6,2800.2,0.01276618]
[1643735185096,0.1785,2801.2,2800.2,0.0258029]
[1643735185300,0.25,2801.8,2801.5,0.72393491]
[1643735185301,0.1784,2801.7,2801.5,0.72393491]
[1643735185536,0.1784,2801.7,2800.4,21.48757506]
[1643735185737,0.1784,2801.9,2800.8,0.89266]
[1643735185939,1.50491237,2801.8,2800.8,0.89266]
[1643735186136,0.1784,2801.7,2800.8,0.89266]
[1643735186335,1.50495943,2801.6,2801.2,0.36430825]
[1643735186539,0.52657865,2801.7,2800.8,0.89266]
[1643735186540,0.1784,2801.5,2800.8,0.89266]
[1643735186941,0.1784,2801.6,2800.8,0.89266]
[1643735187342,0.1784,2801.9,2800.8,2.91194002]
[1643735187544,0.1784,2801.9,2801.5,0.94738244]
[1643735187743,0.1784,2801.9,2801.0,2.03319181]
[1643735187945,0.1784,2801.9,2800.8,1.89266]
[1643735188241,0.31894374,2801.6,2801.1,0.38126217]
[1643735188441,0.31894374,2801.6,2800.8,1.89266]
[1643735189188,0.31894374,2801.6,2801.2,0.73454174]
[1643735189679,0.31894374,2801.6,2800.9,1.0]
[1643735189884,0.31894374,2801.6,2800.8,1.89266]
[1643735190081,0.31894374,2801.6,2800.7,2.78531]
[1643735190281,0.1784,2801.5,2800.7,1.78531]
[1643735190489,1.68339593,2801.5,2800.9,0.79941433]
[1643735190683,1.50503056,2801.4,2800.9,0.79941433]
[1643735190887,0.1784,2801.3,2800.9,0.79941433]
[1643735191283,0.1784,2801.5,2800.4,5.2586]
[1643735191484,0.1784,2801.2,2800.4,5.2586]
[1643735191684,0.1784,2801.3,2800.4,5.2586]
[1643735191887,0.1784,2801.5,2800.4,5.2586]
[1643735192089,0.36164868,2800.8,2800.4,5.2586]
[1643735194135,0.36164868,2800.8,2800.4,0.8929]
[1643735196539,0.36164868,2800.8,2800.1,4.4854]
[1643735196540,21.56164868,2800.8,2800.1,4.4854]
[1643735196790,0.1784,2800.7,2799.9,0.89303]
[1643735196991,1.50529392,2800.6,2799.9,0.89303]
[1643735197191,0.1784,2800.5,2799.9,0.89303]
[1643735197393,0.38932569,2800.3,2799.9,0.89303]
[1643735197591,0.33932569,2800.3,2799.9,1.63553122]
[1643735197992,0.1784,2800.5,2799.9,1.63553122]
[1643735198192,0.1784,2801.0,2800.4,0.81275516]
[1643735198396,1.5051911,2800.9,2800.4,0.81275516]
[1643735198594,0.1784,2800.8,2800.4,0.81275516]
[1643735198793,3.11167595,2802.0,2800.4,0.81275516]
[1643735198794,0.1784,2801.3,2800.4,0.81275516]
[1643735198994,0.33218334,2800.9,2800.4,1.19202355]
[1643735199193,0.33218334,2800.9,2800.4,0.81275516]
[1643735199594,1.50507902,2800.8,2800.4,0.81275516]
[1643735199794,1.50507902,2800.8,2800.4,1.41275516]
[1643735199995,0.1784,2801.4,2800.7,0.89272]
[1643735200196,1.50490848,2801.3,2800.7,0.89272]
[1643735200431,0.91253028,2802.0,2800.8,2.06438582]
[1643735200432,0.1784,2801.9,2800.8,2.06438582]
[1643735200634,1.5048404,2801.8,2801.3,0.79402611]
[1643735200833,0.36775702,2801.5,2801.3,0.79402611]
[1643735201039,1.5048404,2801.4,2801.3,0.79402611]
[1643735201437,1.5048404,2801.4,2800.9,0.43857099]
[1643735201838,1.5048404,2801.4,2800.7,1.89272]
[1643735202439,1.5048404,2801.4,2801.2,0.79238384]
[1643735203039,1.5048404,2801.4,2800.8,0.41962253]
[1643735203842,1.5048404,2801.4,2800.7,0.89272]
[1643735204042,1.6832404,2801.4,2800.7,0.89272]
[1643735204290,1.5048404,2801.3,2800.7,1.60258313]
[1643735204691,1.5048404,2801.3,2800.7,0.70986313]
[1643735204893,1.5048404,2801.3,2800.7,1.09343309]
[1643735205091,1.5048404,2801.3,2800.7,0.70986313]
[1643735205693,0.1784,2801.2,2800.7,0.70986313]
[1643735205895,1.5048404,2801.1,2800.7,0.70986313]
[1643735206300,0.1784,2801.4,2800.7,0.70986313]
[1643735206494,1.50496306,2801.3,2800.7,0.70986313]
[1643735206694,0.1784,2801.2,2800.7,0.70986313]
[1643735206896,0.1784,2801.2,2800.6,6.10263]
[1643735206897,1.50496306,2801.1,2800.6,6.10263]
[1643735207295,1.50496306,2801.0,2800.6,6.10263]
[1643735207497,1.50496306,2800.9,2800.6,6.10263]
[1643735207696,0.42861898,2800.9,2800.6,6.10263]
[1643735207936,1.5050963,2800.8,2800.6,6.99358885]
[1643735208435,1.5050963,2800.8,2800.6,2.67638885]
[1643735209035,1.5050963,2800.8,2800.6,1.78543]
[1643735210338,1.5050963,2800.8,2800.6,2.48708945]
[1643735210536,0.1784,2801.4,2800.6,2.48708945]
[1643735210736,1.50507389,2801.3,2800.6,2.48708945]
[1643735210936,0.17260811,2801.2,2800.6,2.48708945]
[1643735211140,1.50507389,2801.1,2800.6,2.48708945]
[1643735211346,0.38785371,2800.8,2800.6,1.78543]
[1643735211982,1.50507389,2800.7,2800.6,1.78543]
[1643735212383,0.1784,2801.2,2800.7,0.3]
[1643735212586,2.21875595,2801.9,2800.7,0.3]
[1643735212587,1.34862174,2802.2,2801.1,0.01299939]
[1643735212789,0.1785,2801.8,2801.1,0.01299939]
[1643735212984,1.1478079,2801.7,2801.2,0.1784]
[1643735213182,5.0,2802.5,2801.4,0.45282]